bitfinex/quotes_SOLUSD_20250130
["timestamp","ask_amount","ask_price","bid_price","bid_amount"]
[1738219416142,4.1853,238.93,238.9,0.03]
[1738219417147,4.1851,238.94,238.9,0.03]
[1738219421962,51.85602786,238.91,238.9,0.03]
[1738219422166,52.53311295,238.91,238.9,0.03]
[1738219423237,52.53311295,238.91,238.9,0.0001]
[1738219423437,53.53311295,238.91,238.9,0.0001]
[1738219424168,57.71871295,238.91,238.9,0.0001]
[1738219424979,58.84420295,238.91,238.9,0.0001]
[1738219427267,58.96969295,238.91,238.9,0.0001]
[1738219429584,58.96969295,238.91,238.85,0.03]
[1738219429875,58.96969295,238.91,238.83,0.03]
[1738219429876,8.07914386,238.84,238.83,0.03]
[1738219431082,12.26604386,238.84,238.83,0.03]
[1738219431666,8.07914386,238.84,238.83,0.03]
[1738219431871,8.07914386,238.85,238.83,0.03]
[1738219432374,4.86358509,238.86,238.83,0.03]
[1738219432375,32.53311295,238.84,238.83,0.03]
[1738219433464,36.97099295,238.84,238.83,0.03]
[1738219435772,36.84550295,238.84,238.83,0.03]
[1738219435970,12.94312895,238.84,238.83,0.03]
[1738219439078,12.26604386,238.84,238.83,0.03]
[1738219439459,4.1869,238.84,238.83,0.03]
[1738219439659,12.26604386,238.84,238.83,0.03]
[1738219446188,4.1866,238.86,238.83,0.03]
[1738219446364,12.26544386,238.88,238.83,0.03]
[1738219449665,8.07914386,238.9,238.83,8.10914386]
[1738219449869,0.063,238.91,238.85,8.07914386]
[1738219450288,8.07914386,238.9,238.84,7.9604]
[1738219450478,8.07914386,238.87,238.84,7.9604]
[1738219450793,8.07914386,238.87,238.84,6.3055]
[1738219450976,8.07914386,238.88,238.84,6.3055]
[1738219451693,8.07914386,238.87,238.84,6.3055]
[1738219452388,12.26534386,238.88,238.84,6.3055]
[1738219452769,12.32834386,238.88,238.84,6.3055]
[1738219453071,0.063,238.88,238.84,6.3055]
[1738219453571,8.14214386,238.88,238.84,6.3055]
[1738219454991,0.063,238.88,238.84,6.3055]
[1738219455284,8.14214386,238.88,238.84,6.3055]
[1738219456194,0.063,238.88,238.84,6.3055]
[1738219456890,0.063,238.88,238.84,18.57134386]
[1738219457101,0.063,238.88,238.87,8.07914386]
[1738219457595,12.32834386,238.88,238.83,0.03]
[1738219457792,0.67708509,238.87,238.83,0.03]
[1738219458582,4.1865,238.86,238.83,0.03]
[1738219458884,8.07914386,238.84,238.83,0.03]
[1738219460601,8.75622895,238.84,238.83,0.03]
[1738219461502,32.65860295,238.84,238.83,0.03]
[1738219462095,8.07914386,238.84,238.83,0.03]
[1738219464797,8.14214386,238.88,238.83,0.03]
[1738219466375,8.07914386,238.86,238.83,0.03]
[1738219466798,8.75622895,238.86,238.83,0.03]
[1738219466982,8.07914386,238.86,238.83,0.03]
[1738219468800,12.26574386,238.86,238.83,0.03]
[1738219471306,0.67708509,238.85,238.83,0.03]
[1738219471693,8.07914386,238.84,238.83,0.03]
[1738219472003,31.85602786,238.84,238.83,0.03]
[1738219473192,36.04292786,238.84,238.83,0.03]
[1738219473692,36.72001295,238.84,238.83,0.03]
[1738219477316,0.063,238.85,238.83,0.03]
[1738219477525,0.67708509,238.84,238.77,14.70384386]
[1738219479019,4.187,238.83,238.77,14.70384386]
[1738219481624,4.86438509,238.82,238.77,6.6247]
[1738219482123,4.86438509,238.82,238.73,8.07914386]
[1738219482593,8.07914386,238.81,238.71,18.53904386]
[1738219482803,0.67708509,238.8,238.71,18.53904386]
[1738219483135,8.07914386,238.79,238.71,14.35004386]
[1738219483323,0.67708509,238.78,238.71,14.35004386]
[1738219483616,0.67708509,238.78,238.71,6.2709]
[1738219483826,4.86508509,238.78,238.71,6.2709]
[1738219484006,4.188,238.78,238.71,6.2709]
[1738219484320,8.75622895,238.77,238.69,9.58894386]
[1738219485009,8.75622895,238.77,238.69,1.5098]
[1738219485597,8.75622895,238.77,238.69,9.58894386]
[1738219485807,4.1883,238.76,238.69,9.58894386]
[1738219486221,0.67708509,238.75,238.69,8.07914386]
[1738219486409,4.1883,238.76,238.69,8.07914386]
[1738219487720,4.1883,238.76,238.71,8.07914386]
[1738219488528,4.1883,238.76,238.69,8.07914386]
[1738219488826,4.86538509,238.76,238.69,8.10914386]
[1738219489029,4.1881,238.78,238.71,8.07914386]
[1738219489223,4.86518509,238.78,238.71,8.07914386]
[1738219491423,8.07914386,238.77,238.69,8.10914386]
[1738219493631,12.26724386,238.77,238.69,12.29864386]
[1738219495030,4.1881,238.77,238.69,0.03]
[1738219495341,4.1881,238.77,238.7,8.07914386]
[1738219495513,4.86518509,238.77,238.7,8.07914386]
[1738219497746,8.07914386,238.76,238.69,4.2194]
[1738219497920,8.75622895,238.76,238.69,4.2194]
[1738219499130,12.94452895,238.76,238.69,4.2194]
[1738219499646,12.26744386,238.76,238.69,4.2194]
[1738219502326,12.26744386,238.76,238.69,0.03]
[1738219502648,8.75622895,238.75,238.69,0.03]
[1738219503054,8.07914386,238.72,238.69,0.03]
[1738219503220,8.75622895,238.72,238.69,0.03]
[1738219503550,0.67708509,238.72,238.69,0.03]
[1738219504440,12.94512895,238.73,238.69,0.03]
[1738219504641,0.67708509,238.76,238.71,8.07914386]
[1738219504943,12.94442895,238.77,238.7,8.07914386]
[1738219505345,12.94442895,238.77,238.69,8.10914386]
[1738219505947,12.94442895,238.77,238.69,12.29864386]
[1738219507548,12.26734386,238.77,238.69,12.29864386]
[1738219508144,4.1882,238.77,238.71,8.07914386]
[1738219508336,4.1879,238.79,238.71,8.07914386]
[1738219508933,0.67708509,238.8,238.73,8.07914386]
[1738219509137,8.07914386,238.81,238.73,8.07914386]
[1738219509451,13.00642895,238.83,238.75,8.07914386]
[1738219510949,0.74008509,238.83,238.77,8.07914386]
[1738219511128,0.063,238.83,238.77,8.07914386]
[1738219512645,0.063,238.83,238.78,8.07914386]
[1738219514238,0.063,238.83,238.78,12.26694386]
[1738219519740,0.063,238.83,238.8,8.07914386]
[1738219520545,0.063,238.83,238.82,8.07914386]
[1738219520846,0.063,238.83,238.82,32.35798786]
[1738219521154,0.063,238.83,238.82,14.60312386]
[1738219521842,0.063,238.83,238.82,19.04130386]
[1738219523757,0.063,238.83,238.82,42.81818786]
[1738219524139,0.0001,238.83,238.82,42.81818786]
[1738219524334,2.063,238.85,238.84,20.0]
[1738219524553,2.063,238.85,238.84,53.35798786]
[1738219525056,0.0001,238.85,238.84,53.35798786]
[1738219525350,0.0001,238.85,238.84,32.39153386]
[1738219526836,0.0001,238.85,238.83,8.07914386]
[1738219527148,0.0001,238.85,238.81,8.07914386]
[1738219527652,0.0001,238.85,238.83,8.07914386]
[1738219529260,0.0001,238.85,238.84,8.07914386]
[1738219530456,0.0001,238.85,238.84,8.20463386]
[1738219530648,0.0001,238.85,238.84,8.58110386]
[1738219530849,0.0001,238.85,238.84,32.35798786]
[1738219531060,0.0001,238.85,238.84,33.98576436]
[1738219532446,0.0001,238.85,238.84,41.90826436]
[1738219533559,0.0001,238.85,238.84,41.28048786]
[1738219533867,0.0001,238.85,238.84,8.07914386]
[1738219535461,0.0001,238.85,238.81,20.0]
[1738219535761,0.0001,238.85,238.79,4.1877]
[1738219535762,0.0001,238.85,238.83,8.07914386]
[1738219535961,0.0001,238.85,238.81,8.07914386]
[1738219536553,0.0001,238.85,238.79,8.07914386]
[1738219536740,8.07924386,238.85,238.77,8.10914386]
[1738219536940,0.67708509,238.84,238.77,8.10914386]
[1738219537136,4.187,238.83,238.77,8.10914386]
[1738219537559,0.67708509,238.84,238.77,8.10914386]
[1738219537751,12.26604386,238.85,238.83,0.03]
[1738219538147,12.32904386,238.85,238.83,0.03]
[1738219538542,16.88299719,238.85,238.83,0.03]
[1738219541548,0.0631,238.85,238.83,0.03]
[1738219549980,0.0631,238.85,238.84,12.63309719]
[1738219552267,0.0631,238.85,238.84,16.81999719]
[1738219553596,0.0631,238.85,238.84,16.94548719]
[1738219559563,0.0631,238.85,238.84,16.81999719]
[1738219559758,0.0631,238.85,238.84,12.63309719]
[1738219560202,0.0631,238.85,238.83,0.03]
[1738219565365,0.0631,238.85,238.83,8.11242277]
[1738219565563,0.0631,238.85,238.84,8.08242277]
[1738219566904,0.0631,238.85,238.84,12.26932277]
[1738219568296,0.0631,238.85,238.84,12.39481277]
[1738219569671,0.0631,238.85,238.84,12.77128277]
[1738219573298,0.0631,238.85,238.84,12.26932277]
[1738219573488,4.15390442,238.91,238.84,8.08242277]
[1738219574803,12.23632719,238.91,238.84,8.08242277]
[1738219575105,4.186,238.89,238.84,8.08242277]
[1738219577004,4.1858,238.9,238.84,8.08242277]
[1738219577401,6.138,238.94,238.86,8.08242277]
[1738219577402,8.08242277,238.93,238.86,8.08242277]
[1738219577703,10.3233,238.94,238.86,8.08242277]
[1738219578503,4.1855,238.92,238.86,8.08242277]
[1738219579411,32.53639186,238.91,238.84,8.08242277]
[1738219579696,32.53639186,238.91,238.83,0.03]
[1738219580507,28.08242277,238.89,238.83,0.03]
[1738219580721,4.86328509,238.88,238.83,0.03]
[1738219581398,4.1862,238.88,238.83,0.03]
[1738219584705,4.1851,238.94,238.86,8.08242277]
[1738219585092,8.75950786,238.93,238.86,8.08242277]
[1738219585285,0.063,238.91,238.86,8.08242277]
[1738219585800,4.2487,238.91,238.86,8.08242277]
[1738219588123,0.063,238.91,238.86,8.08242277]
[1738219592623,0.063,238.91,238.9,8.08242277]
[1738219597427,0.063,238.91,238.86,8.11242277]
[1738219597921,4.2487,238.91,238.86,8.11242277]
[1738219598111,4.2487,238.91,238.86,0.03]
[1738219598428,13.00820786,238.91,238.86,0.03]
[1738219599003,12.33112277,238.91,238.86,0.03]
[1738219600006,4.2487,238.91,238.86,8.11242277]
[1738219600214,0.063,238.91,238.88,8.08242277]
[1738219604618,0.063,238.91,238.88,12.26852277]
[1738219606016,0.063,238.91,238.88,8.08242277]
[1738219609513,0.063,238.91,238.9,8.08242277]
[1738219612238,0.063,238.91,238.9,12.26822277]
[1738219616945,0.063,238.91,238.9,12.39371277]
[1738219617635,0.063,238.91,238.9,12.77018277]
[1738219618435,0.063,238.91,238.9,4.1858]
[1738219618619,0.063,238.91,238.88,18.29552277]
[1738219619020,0.063,238.91,238.88,12.26842277]
[1738219620937,0.063,238.91,238.88,12.29842277]
[1738219622544,0.063,238.91,238.9,8.08242277]
[1738219625348,4.2486,238.91,238.88,0.03]
[1738219626051,0.063,238.91,238.88,0.03]
[1738219626749,0.063,238.91,238.89,8.08242277]
[1738219627853,0.063,238.91,238.89,12.26832277]
[1738219628426,0.063,238.91,238.9,0.12549]
[1738219629757,0.063,238.91,238.9,0.50196]
[1738219633459,0.063,238.91,238.9,4.68776]
[1738219638667,0.063,238.91,238.88,0.03]
[1738219641674,0.063,238.91,238.89,8.08242277]
[1738219643882,0.063,238.91,238.89,12.26842277]
[1738219650272,0.063,238.91,238.9,0.12549]
[1738219650473,0.063,238.91,238.9,0.50196]
[1738219651755,0.063,238.91,238.9,4.68776]
[1738219653169,0.063,238.91,238.9,13.39783144]
[1738219653775,0.063,238.91,238.9,37.17471544]
[1738219653950,0.0001,238.91,238.9,70.50440652]
[1738219654151,0.0001,238.91,238.9,37.17471544]
[1738219654349,0.0001,238.91,238.9,13.39783144]
[1738219656860,0.0001,238.91,238.9,13.42783144]
[1738219658582,0.0001,238.91,238.9,45.75752252]
[1738219658797,0.063,238.95,238.94,0.50196]
[1738219659088,0.063,238.95,238.94,8.58438277]
[1738219660582,0.0001,238.95,238.94,37.54636677]
[1738219663279,0.0001,238.95,238.94,36.54636677]
[1738219664074,0.0001,238.95,238.94,12.76948277]
[1738219668482,0.0001,238.95,238.94,32.76948277]
[1738219668690,0.0001,238.95,238.94,12.76948277]
[1738219670691,0.0001,238.95,238.94,12.79948277]
[1738219670867,0.0001,238.95,238.94,12.29752277]
[1738219676302,0.0001,238.95,238.94,32.29752277]
[1738219677100,0.0001,238.95,238.94,32.79948277]
[1738219677284,0.063,239.0,238.98,0.12549]
[1738219677593,0.063,239.0,238.99,8.83536627]
[1738219677899,0.063,239.0,238.99,9.21183627]
[1738219678095,0.063,239.07,238.99,9.21183627]
[1738219678393,0.063,239.07,239.06,8.08242277]
[1738219680086,0.063,239.07,239.06,9.21166161]
[1738219680279,0.063,239.07,239.06,13.39466161]
[1738219683292,0.063,239.07,239.06,12.76738277]
[1738219684285,0.063,239.07,239.06,37.54426677]
[1738219687895,0.063,239.07,239.06,36.54426677]
[1738219688204,0.063,239.07,239.06,12.76738277]
[1738219688987,0.06100568,239.12,239.06,12.64189277]
[1738219689495,0.06100568,239.12,239.06,12.26542277]
[1738219690193,0.06100568,239.12,239.04,8.08242277]
[1738219690503,8.08242277,239.11,239.03,8.08242277]
[1738219690700,8.08242277,239.11,239.03,28.08242277]
[1738219691392,8.08242277,239.11,239.03,32.26592277]
[1738219691902,12.26462277,239.11,239.03,12.26592277]
[1738219693103,8.08242277,239.11,239.03,12.26592277]
[1738219696207,0.06100568,239.12,239.05,8.08242277]
[1738219697412,4.24300568,239.12,239.05,8.08242277]
[1738219697911,0.06100568,239.12,239.05,12.26552277]
[1738219698712,4.24300568,239.12,239.05,12.26552277]
[1738219699494,4.24300568,239.12,239.05,8.08242277]
[1738219700909,4.24300568,239.12,239.06,8.08242277]
[1738219701215,0.06100568,239.12,239.08,8.08242277]
[1738219701595,0.06100568,239.12,239.1,8.08242277]
[1738219708197,0.06100568,239.12,239.1,12.26472277]
[1738219711643,0.06100568,239.12,239.1,12.26472277]
[1738219712237,0.06100568,239.12,239.08,8.20791277]
[1738219712418,0.06100568,239.12,239.06,8.08242277]
[1738219712623,0.06100568,239.12,239.05,0.03]
[1738219712624,8.08242277,239.08,239.05,0.03]
[1738219713299,4.24300568,239.12,239.05,0.03]
[1738219713300,8.08242277,239.1,239.05,0.03]
[1738219717531,8.08242277,239.11,239.05,0.03]
[1738219717735,0.06100568,239.12,239.07,8.08242277]
[1738219717909,0.06100568,239.12,239.09,8.08242277]
[1738219718108,0.06100568,239.12,239.11,8.08242277]
[1738219722839,0.06100568,239.12,239.11,12.26452277]
[1738219723229,0.06100568,239.12,239.11,12.76648277]
[1738219726815,0.06100568,239.12,239.11,4.1821]
[1738219727249,0.06100568,239.12,239.1,0.12549]
[1738219728227,0.06100568,239.12,239.09,28.08242277]
[1738219728450,0.06100568,239.12,239.09,8.08242277]
[1738219730435,0.06100568,239.12,239.1,0.03]
[1738219740759,0.06100568,239.12,239.11,8.08242277]
[1738219742849,0.06100568,239.12,239.1,0.03]
[1738219752067,4.24300568,239.12,239.1,0.03]
[1738219754066,0.06100568,239.12,239.1,0.03]
[1738219763875,8.08242277,239.11,239.1,0.03]
[1738219765676,12.26452277,239.11,239.1,0.03]
[1738219767784,12.26452277,239.11,239.05,0.03]
[1738219767785,23.776884,239.1,239.05,0.03]
[1738219767984,8.08242277,239.06,239.05,0.03]
[1738219768157,32.53639186,239.06,239.05,0.03]
[1738219768363,32.53639186,239.06,239.0,0.03]
[1738219768563,8.08242277,239.01,239.0,0.03]
[1738219768766,32.53639186,239.01,239.0,0.03]
[1738219769787,36.72029186,239.01,239.0,0.03]
[1738219769976,8.08242277,239.03,239.0,0.03]
[1738219770366,20.0,239.06,239.0,0.03]
[1738219770367,8.08242277,239.01,239.0,0.03]
[1738219770679,31.85930677,239.01,239.0,0.03]
[1738219772589,36.04320677,239.01,239.0,0.03]
[1738219773864,12.26632277,239.01,239.0,0.03]
[1738219774284,8.08242277,239.01,239.0,0.03]
[1738219775691,32.53639186,239.01,239.0,0.03]
[1738219776395,31.85930677,239.01,239.0,0.03]
[1738219777786,8.08242277,239.01,239.0,0.03]
[1738219779288,12.26632277,239.01,239.0,0.03]
[1738219780387,12.94340786,239.01,239.0,0.03]
[1738219780687,36.72029186,239.01,239.0,0.03]
[1738219783894,4.1839,239.01,239.0,0.03]
[1738219784592,12.26632277,239.01,239.0,0.03]
[1738219785295,12.94340786,239.01,239.0,0.03]
[1738219786696,12.26632277,239.01,239.0,0.03]
[1738219798100,12.94320786,239.03,239.0,0.03]
[1738219798283,4.1834,239.04,239.0,0.03]
[1738219798605,0.063,239.05,239.0,8.11242277]
[1738219799506,0.063,239.05,239.02,8.08242277]
[1738219799713,0.063,239.05,239.0,0.03]
[1738219799714,0.063,239.05,239.04,8.08242277]
[1738219800707,0.063,239.05,239.04,14.22972277]
[1738219802498,0.063,239.05,239.04,16.35408277]
[1738219805216,0.063,239.05,239.04,48.68377385]
[1738219806196,0.063,239.15,239.07,20.0]
[1738219806402,0.063,239.15,239.1,8.08242277]
[1738219817241,4.2444,239.15,239.09,8.08242277]
[1738219818221,0.063,239.15,239.09,8.08242277]
[1738219818425,0.063,239.15,239.1,8.08242277]
[1738219819934,0.063,239.15,239.1,12.26472277]
[1738219821007,8.08242277,239.14,239.07,32.26522277]
[1738219822126,4.2444,239.15,239.07,32.26522277]
[1738219825239,4.2444,239.15,239.04,8.05068]
[1738219825240,8.14342845,239.12,239.05,8.08242277]
[1738219825544,8.08242277,239.1,239.04,0.03]
[1738219826333,12.32542845,239.12,239.04,0.03]
[1738219827018,24.45396909,239.11,239.04,0.03]
[1738219827224,8.08242277,239.08,239.04,0.03]
[1738219827531,8.08242277,239.06,239.04,0.03]
[1738219827740,4.1827,239.08,239.04,0.03]
[1738219828034,12.26482277,239.1,239.04,0.03]
[1738219835939,8.14342845,239.12,239.05,8.08242277]
[1738219836115,4.24300568,239.12,239.05,8.08242277]
[1738219836319,12.32542845,239.12,239.05,8.08242277]
[1738219837945,4.24300568,239.12,239.05,8.08242277]
[1738219838643,4.24300568,239.12,239.08,8.08242277]
[1738219838644,0.06100568,239.12,239.08,8.08242277]
[1738219840032,8.14342845,239.12,239.04,8.11242277]
[1738219840235,12.32542845,239.12,239.04,12.29562277]
[1738219842256,4.24300568,239.12,239.04,12.29562277]
[1738219842543,0.06100568,239.12,239.08,8.08242277]
[1738219843448,0.06100568,239.12,239.1,8.08242277]
[1738219844454,0.06100568,239.12,239.08,12.26502277]
[1738219852857,0.06100568,239.12,239.1,8.08242277]
[1738219854863,0.06100568,239.12,239.11,4.43308]
[1738219856358,0.06100568,239.12,239.11,4.1821]
[1738219857247,0.06100568,239.12,239.08,8.08242277]
[1738219857448,8.14342845,239.12,239.05,138.883]
[1738219857645,8.14342845,239.12,239.05,4.183]
[1738219857854,8.14342845,239.12,239.07,20.0]
[1738219858754,8.14342845,239.12,239.07,24.1828]
[1738219860965,8.14342845,239.12,239.07,20.0]
[1738219861174,8.14342845,239.12,239.05,4.183]
[1738219862766,0.06100568,239.12,239.06,8.08242277]
[1738219863947,0.06100568,239.12,239.06,12.26532277]
[1738219866267,8.14342845,239.12,239.04,12.29562277]
[1738219867048,8.08242277,239.1,239.04,4.2132]
[1738219867365,0.06100568,239.12,239.04,0.03]
[1738219867366,8.08242277,239.07,239.04,0.03]
[1738219867567,8.08242277,239.11,239.04,12.29562277]
[1738219869870,8.08242277,239.11,239.04,8.11242277]
[1738219870172,0.67708509,239.1,239.04,0.03]
[1738219870380,8.08242277,239.09,239.04,0.03]
[1738219870555,8.08242277,239.07,239.04,0.03]
[1738219870759,8.08242277,239.09,239.04,0.03]
[1738219870959,18.32372277,239.11,239.04,0.03]
[1738219871277,0.67708509,239.1,239.04,0.03]
[1738219873578,8.08242277,239.09,239.04,0.03]
[1738219875578,12.26492277,239.09,239.04,0.03]
[1738219875786,8.08242277,239.07,239.04,0.03]
[1738219876678,0.67708509,239.06,239.04,0.03]
[1738219877185,8.08242277,239.07,239.04,0.03]
[1738219877354,12.26492277,239.09,239.04,0.03]
[1738219880690,0.06100568,239.12,239.04,8.11242277]
[1738219881286,4.24300568,239.12,239.04,8.11242277]
[1738219882085,8.08242277,239.11,239.04,8.11242277]
[1738219883081,0.06100568,239.12,239.06,8.08242277]
[1738219884288,0.06100568,239.12,239.06,12.26532277]
[1738219884482,0.06100568,239.12,239.08,8.08242277]
[1738219884797,0.06100568,239.12,239.06,4.1829]
[1738219885085,0.06100568,239.12,239.08,8.08242277]
[1738219886386,0.06100568,239.12,239.1,8.08242277]
[1738219887161,0.06100568,239.12,239.08,8.08242277]
[1738219887664,0.06100568,239.12,239.06,8.08242277]
[1738219887974,8.82051354,239.12,239.04,8.11242277]
[1738219888365,8.14342845,239.12,239.04,8.11242277]
[1738219889081,0.67708509,239.11,239.04,8.11242277]
[1738219889269,31.85930677,239.1,239.04,0.03]
[1738219889589,8.08242277,239.08,239.04,0.03]
[1738219889969,0.67708509,239.07,239.04,0.03]
[1738219890380,31.85930677,239.06,239.04,0.03]
[1738219891083,4.1831,239.06,239.04,0.03]
[1738219892697,8.08242277,239.08,239.04,0.03]
[1738219892880,12.26482277,239.1,239.04,0.03]
[1738219893085,4.85948509,239.1,239.04,0.03]
[1738219893900,12.94190786,239.1,239.04,0.03]
[1738219897588,12.26482277,239.1,239.04,0.03]
[1738219897792,0.67708509,239.09,239.04,0.03]
[1738219897994,4.1826,239.09,239.04,0.03]
[1738219899082,4.85968509,239.09,239.04,0.03]
[1738219899499,23.776884,239.08,239.04,0.03]
[1738219901011,0.06100568,239.12,239.06,8.08242277]
[1738219901199,0.06100568,239.12,239.08,8.08242277]
[1738219903776,0.06100568,239.12,239.11,2.03146]
[1738219903988,0.06100568,239.12,239.11,2.6585598]
[1738219905101,0.06100568,239.12,239.11,6.8406598]
[1738219908610,5.68e-06,239.12,239.11,30.6175438]
[1738219908910,5.68e-06,239.12,239.11,165.3175438]
[1738219909093,5.68e-06,239.12,239.11,164.690444]
[1738219910092,5.68e-06,239.12,239.11,165.690444]
[1738219910410,5.68e-06,239.12,239.11,140.91356]
[1738219910996,5.68e-06,239.12,239.11,172.77286677]
[1738219911194,0.063,239.15,239.14,28.33340277]
[1738219913191,0.063,239.15,239.14,32.51500277]
[1738219913807,0.063,239.18,239.16,0.25098]
[1738219913985,0.063,239.18,239.17,8.58438277]
[1738219915819,0.063,239.18,239.17,12.76548277]
[1738219920719,0.063,239.18,239.16,8.08242277]
[1738219921118,0.063,239.18,239.17,4.1811]
[1738219921995,0.063,239.18,239.16,8.08242277]
[1738219922201,0.063,239.18,239.16,12.26362277]
[1738219923414,0.063,239.18,239.17,8.08242277]
[1738219923620,0.063,239.18,239.17,9.21144064]
[1738219923807,0.063,239.18,239.17,8.08242277]
[1738219929516,0.063,239.18,239.17,12.26352277]
[1738219930507,0.063,239.18,239.17,12.76548277]
[1738219932522,0.0001,239.18,239.17,147.46548277]
[1738219934720,0.0001,239.18,239.16,8.08242277]
[1738219935399,0.0001,239.18,239.13,8.08242277]
[1738219935596,0.0001,239.18,239.11,12.26442277]
[1738219936208,0.0001,239.18,239.14,8.08242277]
[1738219936516,0.0001,239.18,239.16,8.08242277]
[1738219937710,0.0001,239.18,239.14,8.08242277]
[1738219938231,0.0001,239.18,239.12,8.08242277]
[1738219938718,0.0001,239.18,239.15,0.03]
[1738219940928,8.08252277,239.18,239.15,0.03]
[1738219941227,8.08242277,239.16,239.15,0.03]
[1738219942131,31.85930677,239.16,239.15,0.03]
[1738219942426,32.53639186,239.16,239.15,0.03]
[1738219944129,31.85930677,239.16,239.15,0.03]
[1738219945428,36.04060677,239.16,239.15,0.03]
[1738219948327,4.1813,239.16,239.15,0.03]
[1738219948630,12.26352277,239.18,239.15,0.03]
[1738219950528,8.08242277,239.16,239.15,0.03]
[1738219954046,36.04060677,239.16,239.15,0.03]
[1738219957646,27.958184,239.16,239.15,0.03]
[1738219957949,28.63526909,239.16,239.15,0.03]
[1738219958545,36.71769186,239.16,239.15,0.03]
[1738219961624,20.0,239.12,239.08,0.03]
[1738219961824,23.776884,239.09,239.08,0.03]
[1738219962042,24.45396909,239.09,239.08,0.03]
[1738219963423,28.63646909,239.09,239.08,0.03]
[1738219963632,23.776884,239.05,239.04,0.03]
[1738219963836,32.53639186,239.05,239.04,0.03]
[1738219964432,33.53639186,239.05,239.04,0.03]
[1738219964850,36.71959186,239.05,239.04,0.03]
[1738219968055,0.67708509,239.05,239.04,0.03]
[1738219968235,0.67708509,239.1,239.04,8.11242277]
[1738219969952,0.67708509,239.1,239.04,0.03]
[1738219970141,4.85948509,239.1,239.04,0.03]
[1738219970638,23.776884,239.09,239.04,0.03]
[1738219970836,0.67708509,239.08,239.04,0.03]
[1738219971031,31.85930677,239.07,239.04,0.03]
[1738219971341,4.1824,239.1,239.04,0.03]
[1738219971342,51.85930677,239.05,239.04,0.03]
[1738219972234,56.04250677,239.05,239.04,0.03]
[1738219977055,23.776884,239.05,239.04,0.03]
[1738219978357,27.960084,239.05,239.04,0.03]
[1738219979767,0.063,239.08,239.04,0.03]
[1738219981143,0.74008509,239.08,239.04,0.03]
[1738219981738,4.92278509,239.08,239.04,0.03]
[1738219982389,23.776884,239.07,239.04,0.03]
[1738219982573,0.67708509,239.06,239.04,0.03]
[1738219983452,32.53639186,239.07,239.04,0.03]
[1738219983858,36.71939186,239.07,239.04,0.03]
[1738219986183,31.85930677,239.05,239.04,0.03]
[1738219986488,32.53639186,239.05,239.04,0.03]
[1738219988160,36.71959186,239.05,239.04,0.03]
[1738219989453,8.75950786,239.05,239.04,0.03]
[1738219989754,8.08242277,239.05,239.04,0.03]
[1738219989955,8.75950786,239.05,239.04,0.03]
[1738219990262,12.94270786,239.05,239.04,0.03]
[1738219995196,13.06819786,239.05,239.04,0.03]
[1738219995572,36.84508186,239.05,239.04,0.03]
[1738219996796,0.063,239.08,239.04,0.03]
[1738219999786,28.69966909,239.08,239.04,0.03]
[1738220000599,28.022584,239.08,239.04,0.03]
[1738220000774,23.776884,239.07,239.04,0.03]
[1738220002182,0.063,239.08,239.04,0.03]
[1738220004000,0.063,239.08,239.05,8.08242277]
[1738220012811,0.063,239.08,239.04,0.03]
[1738220012994,23.776884,239.06,239.04,0.03]
[1738220013310,4.2457,239.08,239.04,0.03]
[1738220013311,0.063,239.08,239.04,0.03]
[1738220013484,0.063,239.08,239.05,8.08242277]
[1738220013811,0.063,239.08,239.07,8.08242277]
[1738220015014,0.063,239.08,239.05,8.08242277]
[1738220017007,0.063,239.08,239.04,0.03]
[1738220018015,0.74008509,239.08,239.04,0.03]
[1738220018181,23.776884,239.07,239.04,0.03]
[1738220018386,23.776884,239.05,239.04,0.03]
[1738220018889,31.85930677,239.05,239.04,0.03]
[1738220019599,32.53639186,239.05,239.04,0.03]